[Event "World Senior chT-65 2019"]
[Site "Rhodes"]
[Date "2019.04.22"]
[Round "7.15"]
[White "Maryasin, Boris"]
[Black "Van Herck, Marcel"]
[Result "*"]
[ECO "B70"]
[WhiteElo "2297"]
[BlackElo "2066"]
[Annotator "NA"]
[PlyCount "68"]
[EventDate "2019.04.16"]
[EventType "team-tourn"]
[EventCountry "GRE"]
[SourceTitle "playchess.com"]
[Source "ChessBase"]
[SourceQuality "1"]
[WhiteTeam "Israel"]
[BlackTeam "Belgium"]
[WhiteTeamCountry "ISR"]
[BlackTeamCountry "BEL"]
[TimeControl "40/5400+30:1800+30"]

1. e4 {[%emt 0:00:00]} c5 {[%emt 0:00:02]} 2. Nf3 {[%emt 0:00:25]} g6 {[%emt 0:00:01]} 3. d4 {[%emt 0:00:44]} cxd4 {[%emt 0:00:17]} 4. Nxd4 {[%emt 0:00:11]} Bg7 5. Nc3 {[%emt 0:00:23]} Nc6 {[%emt 0:01:04]} 6. Nb3 {[%emt 0:00:26]} Nf6 7. Be2 {[%emt 0:01:36]} O-O {[%emt 0:01:44]} 8. O-O {[%emt 0:01:54]} d6 {[%emt 0:00:11]} 9. Bg5 {[%emt 0:04:50]} Be6 {[%emt 0:06:25]} 10. f4 {[%emt 0:19:10]} Qc8 {[%emt 0:23:53]} 11. h3 {[%emt 0:05:54]} Rd8 {[%emt 0:03:04]} 12. Bf3 {[%emt 0:00:00]} a5 {[%emt 0:05:43]} 13. Nd5 {[%emt 0:05:27]} Bxd5 {[%emt 0:00:14]} 14. exd5 {[%emt 0:00:51]} Nb4 $14 {[%emt 0:02:26]} 15. c3 {[%emt 0:00:00]} Na6 {[%emt 0:06:17]} 16. Qe2 {[%emt 0:05:16]} a4 {[%emt 0:02:52]} 17. Nd4 {[%emt 0:01:22]} a3 {[%emt 0:03:31]} 18. Qxe7 {[%emt 0:02:50]} axb2 {[%emt 0:00:19]} 19. Rab1 {[%emt 0:01:40]} Rd7 {[%emt 0:00:41]} 20. Qe3 {[%emt 0:04:07]} Qc4 {[%emt 0:01:39]} 21. Bxf6 {[%emt 0:00:00]} Bxf6 {[%emt 0:00:45]} 22. Rxb2 {[%emt 0:00:35]} Re7 {[%emt 0:00:07]} 23. Qd2 {[%emt 0:00:57]} Rc8 {[%emt 0:02:39]} 24. Nb5 {[%emt 0:04:02]} Bxc3 {[%emt 0:00:14]} 25. Nxc3 {[%emt 0:00:00]} Qxc3 {[%emt 0:00:50]} 26. Qxc3 {[%emt 0:00:00]} Rxc3 {[%emt 0:01:21]} 27. Rb6 {[%emt 0:00:00]} Rd7 28. f5 {[%emt 0:00:00]} f6 29. fxg6 {[%emt 0:01:20]} hxg6 {[%emt 0:07:06]} 30. Be2 {[%emt 0:06:33]} f5 {[%emt 0:02:04]} 31. Bb5 {[%emt 0:00:39]} Rd8 {[%emt 0:01:54]} 32. Bxa6 {[%emt 0:00:00]} bxa6 {[%emt 0:03:16]} 33. Rxa6 {[%emt 0:00:08]} Rd3 {[%emt 0:00:25]} 34. Rb1 {[%emt 0:00:20]} Kf7 {[%emt 0:00:12]} *

[Event "World Senior chT-65 2019"]
[Site "Rhodes"]
[Date "2019.04.22"]
[Round "7.16"]
[White "Schrickx, Frank"]
[Black "Lederman, Leon"]
[Result "1/2-1/2"]
[ECO "B18"]
[WhiteElo "1823"]
[BlackElo "2281"]
[Annotator "NA"]
[PlyCount "117"]
[EventDate "2019.04.16"]
[EventType "team-tourn"]
[EventCountry "GRE"]
[SourceTitle "playchess.com"]
[Source "ChessBase"]
[SourceQuality "1"]
[WhiteTeam "Belgium"]
[BlackTeam "Israel"]
[WhiteTeamCountry "BEL"]
[BlackTeamCountry "ISR"]
[TimeControl "40/5400+30:1800+30"]

1. e4 {[%emt 0:00:25]} c6 {[%emt 0:00:00]} 2. d4 {[%emt 0:00:19]} d5 {[%emt 0:00:00]} 3. Nd2 {[%emt 0:00:09]} dxe4 {[%emt 0:00:04]} 4. Nxe4 {[%emt 0:00:07]} Bf5 {[%emt 0:00:08]} 5. Ng3 {[%emt 0:00:05]} Bg6 {[%emt 0:00:03]} 6. Nf3 {[%emt 0:00:27]} Nd7 {[%emt 0:00:18]} 7. h4 {[%emt 0:01:00]} h5 {[%emt 0:00:30]} 8. Bd3 {[%emt 0:01:04] B18: Classical Caro-Kann: 4...Bf5 sidelines} Bxd3 {[%emt 0:00:13]} 9. Qxd3 {[%emt 0:00:07]} Ngf6 {[%emt 0:00:07]} 10. Bf4 {[%emt 0:02:10]} Qa5+ {[%emt 0:01:28]} (10... e6 11. O-O-O Nd5 12. Bd2 Qc7 13. Kb1 O-O-O 14. c4 N5f6 15. Qc2 Ng4 {1-0 (64) Miljkovic,M (2457)-Popovic,N (2241) Ruma 2017}) 11. Bd2 {[%emt 0:01:23]} Qc7 {[%emt 0:00:11]} 12. O-O $146 {[%emt 0:02:22]} ({Predecessor:} 12. O-O-O Ng4 13. Qe2 O-O-O 14. Ng5 Nh6 15. Nxh5 Nf6 16. Nf4 Qd6 {1-0 (35) Siegl,A (1803)-Michel,P (1223) Nuremberg 2015}) 12... e6 {[%emt 0:00:10]} 13. Rad1 {[%emt 0:02:16]} Bd6 {[%emt 0:03:47]} 14. Ne4 {[%emt 0:01:53]} Nxe4 {[%emt 0:00:35]} 15. Qxe4 {[%emt 0:00:03]} Nf6 {[%emt 0:00:11]} 16. Qe2 {[%emt 0:05:06]} O-O {[%emt 0:00:33]} 17. c4 {[%emt 0:02:03]} Ng4 {[%emt 0:03:36]} 18. Bc3 {[%emt 0:01:24]} c5 {[%emt 0:05:58]} 19. dxc5 {[%emt 0:05:35]} Bxc5 $14 {[%emt 0:03:43]} 20. Ne5 {[%emt 0:07:44]} Nf6 {[%emt 0:00:50]} 21. b4 {[%emt 0:01:39]} Be7 {[%emt 0:00:13]} 22. Rd3 {[%emt 0:02:56]} a6 {[%emt 0:06:14]} 23. Rg3 {[%emt 0:09:55]} Rfd8 {[%emt 0:03:10]} 24. Rd1 {[%emt 0:10:58]} Rxd1+ {[%emt 0:09:08]} 25. Qxd1 {[%emt 0:00:03]} Rd8 {[%emt 0:00:28]} 26. Qf3 {[%emt 0:01:08]} Kf8 {[%emt 0:05:05]} 27. c5 {[%emt 0:04:19]} Rd5 {[%emt 0:01:04]} 28. Rg5 {[%emt 0:03:20]} Bd8 {[%emt 0:02:20]} 29. Nc4 {[%emt 0:05:03]} Rxg5 {[%emt 0:15:11]} 30. hxg5 {[%emt 0:00:22]} Ng4 {[%emt 0:00:11]} 31. Nd6 {[%emt 0:01:05]} Bxg5 {[%emt 0:04:40]} 32. Qxb7 {[%emt 0:00:46]} Qxb7 {[%emt 0:00:19]} 33. Nxb7 {[%emt 0:00:02]} Bf6 {[%emt 0:00:50]} 34. Bxf6 {[%emt 0:09:28]} Nxf6 {[%emt 0:00:16]} 35. a4 {[%emt 0:00:53]} Ke7 {[%emt 0:00:51]} 36. b5 {[%emt 0:02:14]} axb5 {[%emt 0:00:10]} 37. axb5 {[%emt 0:00:52]} Nd5 {[%emt 0:06:49]} 38. Na5 {[%emt 0:02:28]} Kd7 {[%emt 0:00:53]} 39. Kf1 {[%emt 0:02:40]} g5 {[%emt 0:00:21]} 40. Nc4 {[%emt 0:00:00]} f6 {[%emt 0:00:00]} 41. Nd6 {[%emt 0:07:01]} h4 {[%emt 0:01:17]} 42. Ne4 {[%emt 0:02:09]} g4 {[%emt 0:01:03]} 43. Nd2 {[%emt 0:05:25]} Nc3 {[%emt 0:07:56]} 44. f3 {[%emt 0:03:54]} gxf3 {[%emt 0:05:37]} 45. Nxf3 {[%emt 0:00:34]} Nxb5 {[%emt 0:00:06]} 46. Nxh4 {[%emt 0:00:13]} Kc6 {[%emt 0:00:05]} 47. Ke2 {[%emt 0:00:25]} Kxc5 {[%emt 0:00:02]} 48. Ke3 {[%emt 0:00:25]} Kd5 {[%emt 0:00:10]} 49. g4 {[%emt 0:01:54]} Nd4 {[%emt 0:02:20]} 50. Ng6 {[%emt 0:01:29]} e5 {[%emt 0:00:51]} 51. Ne7+ {[%emt 0:01:00]} Ke6 {[%emt 0:01:32]} 52. Ng6 {[%emt 0:00:38]} Kf7 {[%emt 0:00:13]} 53. Nh4 {[%emt 0:00:24]} Kg7 {[%emt 0:00:05]} 54. Kf2 {[%emt 0:04:39]} Kh6 {[%emt 0:00:08]} 55. Kg3 {[%emt 0:00:35]} Kg5 {[%emt 0:00:25]} 56. Ng2 {[%emt 0:00:22]} Nc6 {[%emt 0:31:09]} 57. Ne3 {[%emt 0:11:10]} e4 {[%emt 0:03:11]} 58. Nd5 {[%emt 0:01:41]} Ne5 {[%emt 0:00:50]} 59. Nxf6 {[%emt 0:02:03]} 1/2-1/2

[Event "World Senior chT-65 2019"]
[Site "Rhodes"]
[Date "2019.04.22"]
[Round "7.17"]
[White "Pedersen, Svend"]
[Black "Herzog, Adolf"]
[Result "0-1"]
[ECO "C00"]
[WhiteElo "2178"]
[BlackElo "2337"]
[Annotator "NA"]
[PlyCount "78"]
[EventDate "2019.04.16"]
[EventType "team-tourn"]
[EventCountry "GRE"]
[SourceTitle "playchess.com"]
[Source "ChessBase"]
[SourceQuality "1"]
[WhiteTeam "Denmark"]
[BlackTeam "Austria"]
[WhiteTeamCountry "DEN"]
[BlackTeamCountry "AUT"]
[TimeControl "40/5400+30:1800+30"]

1. e4 {[%emt 0:00:00]} e6 {[%emt 0:00:00]} 2. d3 {[%emt 0:00:00]} d5 {[%emt 0:00:00]} 3. Nd2 {[%emt 0:00:00]} c5 {[%emt 0:00:46]} 4. Ngf3 {[%emt 0:00:00]} Nc6 {[%emt 0:00:07]} 5. g3 {[%emt 0:00:43]} Nf6 {[%emt 0:00:20]} 6. Bg2 {[%emt 0:00:08]} Be7 {[%emt 0:00:12]} 7. O-O {[%emt 0:00:07]} O-O {[%emt 0:00:06]} 8. Re1 {[%emt 0:03:24]} b5 {[%emt 0:01:47]} 9. e5 {[%emt 0:03:20]} Ne8 {[%emt 0:00:10]} 10. Nf1 {[%emt 0:03:11]} a5 {[%emt 0:00:17]} 11. h4 {[%emt 0:00:11]} Ra6 {[%emt 0:00:09]} 12. N1h2 {[%emt 0:07:03]} f5 {[%emt 0:00:09]} 13. Bg5 {[%emt 0:00:40]} Nc7 {[%emt 0:07:07]} 14. Qd2 {[%emt 0:05:43]} Bd7 {[%emt 0:02:26]} 15. Bxe7 {[%emt 0:02:13]} Qxe7 {[%emt 0:02:20]} 16. Ng5 {[%emt 0:00:22]} b4 {[%emt 0:01:43]} 17. a3 $15 {[%emt 0:12:55]} bxa3 {[%emt 0:09:57]} 18. Rxa3 {[%emt 0:01:41]} Rb8 {[%emt 0:04:54]} 19. Ra2 {[%emt 0:04:49]} Rab6 {[%emt 0:06:52]} 20. Qc1 {[%emt 0:02:03]} a4 {[%emt 0:02:39]} 21. Nhf3 {[%emt 0:06:45]} Nb4 {[%emt 0:05:21]} 22. Ra1 {[%emt 0:01:03]} Nb5 {[%emt 0:01:11]} 23. Bf1 {[%emt 0:02:53]} h6 {[%emt 0:01:04]} 24. Nh3 {[%emt 0:00:14]} Nd4 {[%emt 0:02:42]} 25. Nxd4 {[%emt 0:00:47]} cxd4 {[%emt 0:00:05]} 26. c3 {[%emt 0:03:30]} Na6 {[%emt 0:05:06]} 27. Qf4 {[%emt 0:09:02]} Rxb2 {[%emt 0:02:58]} 28. Qxd4 {[%emt 0:00:14]} Qc5 {[%emt 0:06:47]} 29. Qxc5 {[%emt 0:01:45]} Nxc5 {[%emt 0:00:06]} 30. Nf4 {[%emt 0:00:24]} Nb3 {[%emt 0:00:29]} 31. Ra3 {[%emt 0:10:09]} Nd2 {[%emt 0:01:12]} 32. Rc1 {[%emt 0:05:50]} Rb1 {[%emt 0:03:04]} 33. Ra1 {[%emt 0:05:23]} Rxc1 {[%emt 0:00:12]} 34. Rxc1 {[%emt 0:00:03]} Rb1 {[%emt 0:04:08]} 35. Ne2 {[%emt 0:02:00]} a3 {[%emt 0:00:26]} 36. Rxb1 {[%emt 0:00:07]} Nxb1 {[%emt 0:00:06]} 37. Nc1 {[%emt 0:00:03]} Nxc3 {[%emt 0:00:06]} 38. Nb3 {[%emt 0:00:17]} Ba4 {[%emt 0:00:16]} 39. Na1 {[%emt 0:00:38]} Nb5 {[%emt 0:00:07]} 0-1

[Event "World Senior chT-65 2019"]
[Site "Rhodes"]
[Date "2019.04.22"]
[Round "7.18"]
[White "Petschar, Kurt"]
[Black "Holst, Per"]
[Result "1-0"]
[ECO "E11"]
[WhiteElo "2226"]
[BlackElo "2150"]
[Annotator "NA"]
[PlyCount "133"]
[EventDate "2019.04.16"]
[EventType "team-tourn"]
[EventCountry "GRE"]
[SourceTitle "playchess.com"]
[Source "ChessBase"]
[SourceQuality "1"]
[WhiteTeam "Austria"]
[BlackTeam "Denmark"]
[WhiteTeamCountry "AUT"]
[BlackTeamCountry "DEN"]
[TimeControl "40/5400+30:1800+30"]

1. d4 {[%emt 0:00:00]} e6 {[%emt 0:00:00]} 2. c4 {[%emt 0:00:20]} Nf6 {[%emt 0:00:00]} 3. Nf3 {[%emt 0:00:33]} Bb4+ {[%emt 0:00:00]} 4. Bd2 {[%emt 0:01:10]} Qe7 {[%emt 0:00:05]} 5. g3 {[%emt 0:00:23]} O-O {[%emt 0:00:28]} 6. Bg2 {[%emt 0:00:06]} Bxd2+ {[%emt 0:00:42]} 7. Qxd2 {[%emt 0:00:53]} d6 {[%emt 0:00:17]} 8. Nc3 {[%emt 0:01:00]} e5 {[%emt 0:00:15]} 9. O-O {[%emt 0:00:18]} Re8 {[%emt 0:03:30]} 10. e4 {[%emt 0:06:40]} Bg4 {[%emt 0:07:56]} 11. Ne1 {[%emt 0:00:11]} Nc6 {[%emt 0:01:57]} 12. Nc2 {[%emt 0:00:08]} exd4 {[%emt 0:04:01]} 13. Nxd4 {[%emt 0:01:05]} Nxd4 {[%emt 0:02:45]} 14. Qxd4 {[%emt 0:00:00]} Qe5 {[%emt 0:03:50]} 15. Qd2 {[%emt 0:02:22]} Qc5 {[%emt 0:05:16]} 16. b3 {[%emt 0:05:17]} Bd7 {[%emt 0:03:34]} 17. Rfe1 {[%emt 0:03:46]} Bc6 $14 {[%emt 0:03:30]} 18. Rac1 {[%emt 0:00:00]} a5 {[%emt 0:05:31]} 19. Nd5 {[%emt 0:07:37]} Bxd5 {[%emt 0:01:44]} 20. cxd5 {[%emt 0:00:16]} Qb6 {[%emt 0:00:10]} 21. Qe3 {[%emt 0:18:36]} Qxe3 {[%emt 0:08:13]} 22. Rxe3 {[%emt 0:01:13]} Re7 {[%emt 0:00:19]} 23. Rec3 {[%emt 0:03:04]} Ne8 {[%emt 0:04:23]} 24. f3 {[%emt 0:07:45]} f5 {[%emt 0:02:38]} 25. exf5 {[%emt 0:00:34]} Re5 {[%emt 0:02:13]} 26. f4 {[%emt 0:01:52]} Rxf5 {[%emt 0:00:10]} 27. Bh3 {[%emt 0:00:11]} Rh5 {[%emt 0:00:22]} 28. Bg4 {[%emt 0:00:06]} Rh6 {[%emt 0:00:31]} 29. Bd7 {[%emt 0:00:06]} Rh5 {[%emt 0:11:03]} 30. R1c2 {[%emt 0:01:52]} Kf8 {[%emt 0:02:44]} 31. Bxe8 {[%emt 0:00:25]} Rxe8 {[%emt 0:00:26]} 32. Rxc7 {[%emt 0:00:07]} Re7 {[%emt 0:00:43]} 33. Rxe7 {[%emt 0:19:37]} Kxe7 {[%emt 0:00:16]} 34. Rd2 {[%emt 0:00:02]} g5 {[%emt 0:03:27]} 35. Re2+ {[%emt 0:02:20]} Kf7 {[%emt 0:05:10]} 36. Re6 {[%emt 0:05:17]} gxf4 {[%emt 0:00:37]} 37. Rxd6 {[%emt 0:00:11]} fxg3 {[%emt 0:01:27]} 38. hxg3 {[%emt 0:00:22]} b5 {[%emt 0:01:40]} 39. Kg2 {[%emt 0:03:30]} a4 {[%emt 0:11:03]} 40. bxa4 {[%emt 0:00:00]} bxa4 {[%emt 0:00:34]} 41. Ra6 {[%emt 0:00:05]} Rxd5 {[%emt 0:00:24]} 42. Rxa4 {[%emt 0:00:00]} Rd3 {[%emt 0:04:28]} 43. Kh3 {[%emt 0:04:51]} h5 44. Kh4 {[%emt 0:01:13]} Kg6 {[%emt 0:01:56]} 45. Ra6+ {[%emt 0:00:59]} Kg7 {[%emt 0:01:44]} 46. Ra5 {[%emt 0:01:40]} Kg6 {[%emt 0:02:49]} 47. Ra6+ {[%emt 0:00:58]} Kg7 {[%emt 0:00:12]} 48. a4 {[%emt 0:00:00]} Ra3 {[%emt 0:01:32]} 49. Ra5 {[%emt 0:00:55]} Kf6 {[%emt 0:01:50]} 50. Ra7 {[%emt 0:06:08]} Kg6 {[%emt 0:01:35]} 51. Ra8 {[%emt 0:00:51]} Kg7 {[%emt 0:00:31]} 52. Ra6 {[%emt 0:00:33]} Kf7 {[%emt 0:04:49]} 53. a5 {[%emt 0:07:25]} Kg7 {[%emt 0:00:00]} 54. Ra8 {[%emt 0:00:09]} Kg6 {[%emt 0:00:00]} 55. Rg8+ {[%emt 0:00:34]} Kh6 {[%emt 0:00:00]} 56. Rh8+ {[%emt 0:00:13]} Kg6 {[%emt 0:04:42]} 57. Rxh5 {[%emt 0:00:18]} Ra4+ {[%emt 0:01:01]} 58. g4 {[%emt 0:00:13]} Ra1 {[%emt 0:00:23]} 59. Rb5 {[%emt 0:00:24]} Rh1+ {[%emt 0:01:04]} 60. Kg3 {[%emt 0:00:23]} Rg1+ {[%emt 0:00:03]} 61. Kf3 {[%emt 0:00:18]} Rf1+ {[%emt 0:01:12]} 62. Ke4 {[%emt 0:00:42]} Re1+ {[%emt 0:00:20]} 63. Kd4 {[%emt 0:00:19]} Ra1 {[%emt 0:03:49]} 64. g5 {[%emt 0:01:53]} Ra4+ {[%emt 0:03:34]} 65. Kc5 {[%emt 0:00:16]} Kxg5 {[%emt 0:00:00]} 66. Kb6+ {[%emt 0:02:36]} Kf6 {[%emt 0:00:00]} 67. a6 {[%emt 0:01:48]} 1-0

[Event "World Senior chT-65 2019"]
[Site "Rhodes"]
[Date "2019.04.22"]
[Round "7.19"]
[White "Hvenekilde, Jorgen"]
[Black "Singer, Hans"]
[Result "0-1"]
[ECO "B40"]
[WhiteElo "2046"]
[BlackElo "2195"]
[Annotator "NA"]
[PlyCount "62"]
[EventDate "2019.04.16"]
[EventType "team-tourn"]
[EventCountry "GRE"]
[SourceTitle "playchess.com"]
[Source "ChessBase"]
[SourceQuality "1"]
[WhiteTeam "Denmark"]
[BlackTeam "Austria"]
[WhiteTeamCountry "DEN"]
[BlackTeamCountry "AUT"]
[TimeControl "40/5400+30:1800+30"]

1. e4 {[%emt 0:00:00]} c5 {[%emt 0:00:00]} 2. Nf3 {[%emt 0:00:00]} Nc6 {[%emt 0:00:08]} 3. Be2 {[%emt 0:00:56]} e6 {[%emt 0:00:49]} 4. O-O {[%emt 0:00:33]} Nf6 {[%emt 0:00:14]} 5. d3 {[%emt 0:00:37]} d5 {[%emt 0:01:05]} 6. Nbd2 {[%emt 0:01:13]} Be7 {[%emt 0:01:08]} 7. Re1 {[%emt 0:02:01]} Qc7 {[%emt 0:05:26]} 8. c3 {[%emt 0:02:22]} O-O {[%emt 0:04:04]} 9. Bf1 {[%emt 0:02:03]} d4 {[%emt 0:00:25]} 10. a4 {[%emt 0:01:12]} e5 {[%emt 0:00:31]} 11. cxd4 {[%emt 0:04:41]} cxd4 {[%emt 0:00:09]} 12. Nc4 {[%emt 0:00:24]} Bb4 {[%emt 0:00:53]} 13. Bd2 {[%emt 0:00:18]} Bxd2 {[%emt 0:00:32]} 14. Nfxd2 {[%emt 0:02:59]} Be6 {[%emt 0:03:56]} 15. g3 {[%emt 0:04:23]} a5 {[%emt 0:00:38]} 16. Rc1 {[%emt 0:03:20]} Rac8 {[%emt 0:03:54]} 17. Be2 $17 {[%emt 0:10:52]} (17. Nf3 $15) 17... Nb4 {[%emt 0:01:46]} 18. Na3 {[%emt 0:04:14]} Qb8 {[%emt 0:01:21]} 19. Ndc4 {[%emt 0:01:30]} b6 {[%emt 0:00:48]} 20. Qd2 {[%emt 0:03:55]} Nd7 {[%emt 0:05:09]} 21. b3 {[%emt 0:04:51]} Nc5 {[%emt 0:00:55]} 22. Rb1 {[%emt 0:00:08]} f5 {[%emt 0:01:26]} 23. f3 {[%emt 0:02:23]} fxe4 {[%emt 0:00:56]} 24. fxe4 {[%emt 0:00:27]} Bh3 {[%emt 0:09:49]} 25. Nc2 {[%emt 0:06:20]} Nxc2 {[%emt 0:10:57]} 26. Qxc2 {[%emt 0:00:17]} Rf6 {[%emt 0:00:55]} 27. Bf1 {[%emt 0:00:31]} Be6 {[%emt 0:00:33]} 28. Bg2 {[%emt 0:01:38]} Na6 {[%emt 0:07:16]} 29. Rf1 {[%emt 0:01:55]} Bxc4 {[%emt 0:02:02]} 30. bxc4 {[%emt 0:01:15]} Rxf1+ {[%emt 0:03:02]} 31. Bxf1 {[%emt 0:05:23]} Nc5 {[%emt 0:01:22]} 0-1

[Event "World Senior chT-65 2019"]
[Site "Rhodes"]
[Date "2019.04.22"]
[Round "7.20"]
[White "Ager, Josef"]
[Black "Grevlund, Per"]
[Result "1-0"]
[ECO "E08"]
[WhiteElo "2122"]
[BlackElo "1998"]
[Annotator "NA"]
[PlyCount "133"]
[EventDate "2019.04.16"]
[EventType "team-tourn"]
[EventCountry "GRE"]
[SourceTitle "playchess.com"]
[Source "ChessBase"]
[SourceQuality "1"]
[WhiteTeam "Austria"]
[BlackTeam "Denmark"]
[WhiteTeamCountry "AUT"]
[BlackTeamCountry "DEN"]
[TimeControl "40/5400+30:1800+30"]

1. Nf3 {[%emt 0:00:08]} Nf6 {[%emt 0:00:00]} 2. c4 {[%emt 0:00:07]} e6 {[%emt 0:00:00]} 3. g3 {[%emt 0:00:11]} d5 {[%emt 0:00:14]} 4. Bg2 {[%emt 0:00:06]} c6 {[%emt 0:00:48]} 5. Qc2 {[%emt 0:00:09]} Be7 {[%emt 0:00:37]} 6. O-O {[%emt 0:00:10]} O-O {[%emt 0:00:12]} 7. d4 {[%emt 0:00:06]} Nbd7 {[%emt 0:00:34]} 8. Rd1 {[%emt 0:00:12]} Re8 {[%emt 0:01:00]} 9. Nc3 {[%emt 0:00:09]} b6 {[%emt 0:08:15]} 10. e4 {[%emt 0:03:40]} dxe4 {[%emt 0:00:32]} 11. Ng5 {[%emt 0:00:34]} Bb7 {[%emt 0:01:24]} 12. Ngxe4 {[%emt 0:00:11]} Nxe4 {[%emt 0:02:03]} 13. Nxe4 {[%emt 0:00:07]} Nf6 {[%emt 0:01:27]} 14. Nc3 {[%emt 0:00:29]} h6 {[%emt 0:10:43]} 15. Bf4 {[%emt 0:01:06]} Bd6 {[%emt 0:04:51]} 16. Be5 $14 {[%emt 0:01:26]} Qe7 {[%emt 0:00:29]} 17. a4 {[%emt 0:05:16]} a5 {[%emt 0:09:10]} 18. Bxf6 {[%emt 0:07:44]} Qxf6 {[%emt 0:01:26]} 19. c5 {[%emt 0:00:10]} bxc5 {[%emt 0:08:00]} 20. dxc5 {[%emt 0:01:28]} Be5 {[%emt 0:00:06]} 21. Rd7 {[%emt 0:01:16]} Bc8 {[%emt 0:10:26]} 22. Ne4 {[%emt 0:01:41]} Qf5 {[%emt 0:00:03]} 23. Rd3 {[%emt 0:01:24]} Ba6 {[%emt 0:06:01]} 24. Rb3 {[%emt 0:00:59]} Red8 {[%emt 0:03:44]} 25. Rd1 {[%emt 0:01:52]} Bc7 {[%emt 0:01:49]} 26. Re1 {[%emt 0:05:20]} Rd4 {[%emt 0:02:28]} 27. Rf3 {[%emt 0:08:01]} Qe5 {[%emt 0:01:45]} 28. Nf6+ {[%emt 0:00:55]} gxf6 {[%emt 0:01:52]} 29. Rxe5 {[%emt 0:00:09]} Bxe5 {[%emt 0:03:26]} 30. Bf1 {[%emt 0:03:38]} Bxf1 {[%emt 0:04:30]} 31. Kxf1 {[%emt 0:00:08]} Rad8 {[%emt 0:00:24]} 32. Kg2 {[%emt 0:00:54]} Rd2 {[%emt 0:06:54]} 33. Qe4 {[%emt 0:00:27]} R8d5 {[%emt 0:03:31]} 34. Qg4+ {[%emt 0:05:53]} Kh7 {[%emt 0:00:39]} 35. b4 {[%emt 0:10:27]} axb4 {[%emt 0:00:01]} 36. Qxb4 {[%emt 0:00:32]} Rc2 {[%emt 0:02:10]} 37. a5 {[%emt 0:01:08]} Rcxc5 {[%emt 0:00:23]} 38. a6 {[%emt 0:00:26]} Rb5 {[%emt 0:04:02]} 39. Qf8 {[%emt 0:00:25]} Rd7 {[%emt 0:00:23]} 40. Ra3 {[%emt 0:00:00]} Bd4 {[%emt 0:00:00]} 41. Ra4 {[%emt 0:07:31]} e5 {[%emt 0:08:25]} 42. Ra2 {[%emt 0:02:06]} Ra7 {[%emt 0:02:32]} 43. Qc8 {[%emt 0:00:15]} Rb6 {[%emt 0:01:32]} 44. Kf3 {[%emt 0:00:11]} Kg7 {[%emt 0:02:34]} 45. Ke4 {[%emt 0:00:41]} c5 {[%emt 0:03:35]} 46. f4 {[%emt 0:00:47]} Re6 {[%emt 0:01:10]} 47. f5 {[%emt 0:00:32]} Ree7 {[%emt 0:00:30]} 48. g4 {[%emt 0:00:16]} Rec7 {[%emt 0:00:38]} 49. Qe8 {[%emt 0:05:53]} c4 {[%emt 0:00:13]} 50. h4 {[%emt 0:00:07]} c3 {[%emt 0:00:44]} 51. Qa4 {[%emt 0:00:14]} c2 {[%emt 0:04:35]} 52. Rxc2 {[%emt 0:00:12]} Rxc2 {[%emt 0:00:02]} 53. Qxc2 {[%emt 0:00:15]} Rxa6 {[%emt 0:00:04]} 54. Qg2 {[%emt 0:01:53]} Ra4 {[%emt 0:02:34]} 55. g5 {[%emt 0:00:20]} Bf2+ {[%emt 0:01:52]} 56. Kd3 {[%emt 0:00:47]} Rd4+ {[%emt 0:01:29]} 57. Kc3 {[%emt 0:00:38]} Bxh4 {[%emt 0:00:29]} 58. g6 {[%emt 0:00:08]} fxg6 {[%emt 0:02:35]} 59. Qb7+ {[%emt 0:00:19]} Kf8 {[%emt 0:01:50]} 60. fxg6 {[%emt 0:00:07]} Ke8 {[%emt 0:00:02]} 61. Qf7+ {[%emt 0:00:49]} Kd8 {[%emt 0:00:02]} 62. g7 {[%emt 0:00:15]} Rg4 {[%emt 0:01:00]} 63. g8=Q+ {[%emt 0:00:09]} Rxg8 {[%emt 0:00:21]} 64. Qxg8+ {[%emt 0:00:09]} Ke7 {[%emt 0:00:04]} 65. Qg7+ {[%emt 0:00:11]} Ke6 {[%emt 0:01:05]} 66. Qxh6 {[%emt 0:00:10]} Bg5 {[%emt 0:00:12]} 67. Qg6 {[%emt 0:00:07]} 1-0

[Event "World Senior chT-65 2019"]
[Site "Rhodes"]
[Date "2019.04.22"]
[Round "7.21"]
[White "Bellin, Robert"]
[Black "Baruch, Andrew J D"]
[Result "1-0"]
[ECO "B06"]
[WhiteElo "2315"]
[BlackElo "2039"]
[Annotator "NA"]
[PlyCount "43"]
[EventDate "2019.04.16"]
[EventType "team-tourn"]
[EventCountry "GRE"]
[SourceTitle "playchess.com"]
[Source "ChessBase"]
[SourceQuality "1"]
[WhiteTeam "England"]
[BlackTeam "England"]
[WhiteTeamCountry "ENG"]
[BlackTeamCountry "ENG"]
[TimeControl "40/5400+30:1800+30"]

1. d4 {[%emt 0:00:26]} g6 {[%emt 0:00:00]} 2. e4 {[%emt 0:00:46]} Bg7 {[%emt 0:00:00]} 3. Nc3 {[%emt 0:00:07]} d6 {[%emt 0:00:01]} 4. f4 {[%emt 0:01:20]} a6 {[%emt 0:02:23]} 5. Nf3 {[%emt 0:00:22]} Nd7 {[%emt 0:02:13]} 6. a4 {[%emt 0:01:55]} b6 {[%emt 0:02:17]} 7. Bc4 {[%emt 0:03:11]} e6 {[%emt 0:00:14]} 8. O-O {[%emt 0:01:41]} Ne7 {[%emt 0:05:47]} 9. f5 {[%emt 0:01:09]} d5 {[%emt 0:11:55]} 10. fxe6 {[%emt 0:08:49]} dxc4 {[%emt 0:00:18]} 11. Ng5 {[%emt 0:00:34]} (11. exd7+ Bxd7 12. Qe2 b5) 11... Ne5 {[%emt 0:04:17]} 12. dxe5 $18 {[%emt 0:04:23]} Bxe6 {[%emt 0:03:54]} 13. Nxe6 {[%emt 0:09:06]} fxe6 {[%emt 0:02:24]} 14. Qg4 {[%emt 0:02:51]} Qd7 {[%emt 0:08:05]} 15. Bg5 {[%emt 0:08:57]} Rf8 {[%emt 0:06:20]} 16. Rad1 {[%emt 0:08:29]} Rxf1+ {[%emt 0:00:42]} 17. Kxf1 {[%emt 0:00:06]} Qc6 {[%emt 0:00:27]} 18. Qh4 {[%emt 0:04:23]} Qc5 {[%emt 0:03:37]} 19. Bf6 {[%emt 0:00:17]} Bf8 {[%emt 0:06:15]} 20. Qxh7 {[%emt 0:00:47]} Rd8 {[%emt 0:00:44]} 21. Rxd8+ {[%emt 0:01:34]} Kxd8 {[%emt 0:00:02]} 22. Qf7 {[%emt 0:00:09]} 1-0